fUST/lending_fUST_20250513
["ID","MTS","AMOUNT","RATE_DAILY","PERIOD"]
[360868959,1747090233044,-500.0,0.00013,2]
[360868961,1747090233054,-500.0,0.00013,2]
[360868963,1747090233063,-151.37591629,0.00013103,2]
[360868965,1747090233075,-205.9021066,0.00013103,2]
[360868967,1747090233086,-207.4,0.00013103,2]
[360868968,1747090233095,-10000.0,0.00013158,2]
[360868969,1747090233105,-178.8130824,0.00013334,2]
[360868970,1747090233115,-181.0,0.00013419,2]
[360868971,1747090233125,-420.0,0.00013419,2]
[360868972,1747090233134,-229.38901895,0.00013428,2]
[360868973,1747090233145,-1680.0,0.00013449,2]
[360868974,1747090233154,-4239.20742803,0.00013466,2]
[360868975,1747090233164,-160.0,0.00013698,2]
[360868976,1747090233174,-15026.6389861,0.00013699,2]
[360868977,1747090233186,-2014.900985,0.00013699,2]
[360868978,1747090233196,-386.042963,0.00013699,2]
[360868979,1747090233206,-500.0,0.00013699,2]
[360868980,1747090233216,-377.59917851,0.00013699,2]
[360868981,1747090233226,-1022.1142845,0.00014247,2]
[360868982,1747090233235,-546.0,0.00014256,2]
[360868983,1747090233246,-706.0,0.00014256,2]
[360868984,1747090233255,-2237.0,0.00014256,2]
[360868985,1747090233265,-215.0738,0.00014472,2]
[360868986,1747090233275,-200.108,0.00014548,2]
[360868987,1747090233284,-151.353757,0.00014599,5]
[360868988,1747090233294,-151.353757,0.000146,3]
[360868989,1747090233304,-587.0,0.00014728,2]
[360868990,1747090233313,-1733.0,0.00014794,2]
[360868991,1747090233322,-153.0,0.00014795,2]
[360868992,1747090233332,-153.0,0.00014795,2]
[360868993,1747090233343,-153.0,0.00014795,2]
[360868994,1747090233355,-153.0,0.00014795,2]
[360868995,1747090233365,-153.0,0.00014795,2]
[360868996,1747090233374,-153.0,0.00014795,2]
[360868997,1747090233384,-153.0,0.00014795,2]
[360868998,1747090233394,-153.0,0.00014795,2]
[360868999,1747090233404,-153.0,0.00014795,2]
[360869000,1747090233415,-153.0,0.00014795,2]
[360869001,1747090233427,-153.0,0.00014795,2]
[360869002,1747090233437,-153.0,0.00014795,2]
[360869003,1747090233447,-153.0,0.00014795,2]
[360869004,1747090233457,-153.0,0.00014795,2]
[360869005,1747090233467,-153.0,0.00014795,2]
[360869006,1747090233476,-153.0,0.00014795,2]
[360869007,1747090233486,-153.0,0.00014795,2]
[360869008,1747090233496,-153.0,0.00014795,2]
[360869009,1747090233506,-153.0,0.00014795,2]
[360869010,1747090233516,-4239.20742803,0.00014812,2]
[360869011,1747090233526,-2185.61920081,0.00014824,2]
[360869012,1747090233536,-250.0,0.00014867,2]
[360869013,1747090233546,-301.208528,0.00014889,2]
[360869014,1747090233556,-156.687773,0.00014897,5]
[360869015,1747090233565,-500.0,0.00014898,2]
[360869016,1747090233575,-500.0,0.00014898,2]
[360869017,1747090233585,-151.0,0.000149,2]
[360869018,1747090233594,-1874.89,0.000149,2]
[360869019,1747090233604,-11306.83276181,0.000149,2]
[360869020,1747090233614,-11306.83276159,0.000149,2]
[360869021,1747090233623,-11306.83276159,0.000149,2]
[360869022,1747090233633,-11306.83276159,0.000149,2]
[360869023,1747090233642,-11306.83276159,0.000149,2]
[360869024,1747090233652,-11306.83276159,0.000149,2]
[360869025,1747090233662,-761.1328634,0.00014924,2]
[360869026,1747090233672,-136512.19987468,0.00015,2]
[360869027,1747090233684,-151.0,0.00015,2]
[360869028,1747090233694,-171.744374,0.00015,2]
[360869029,1747090233703,-171.776576,0.00015,2]
[360869030,1747090233713,-171.776576,0.00015,2]
[360869031,1747090233723,-171.776576,0.00015,2]
[360869032,1747090233733,-171.776576,0.00015,2]
[360869033,1747090233743,-214.09725,0.00015,2]
[360869034,1747090233752,-214.09725,0.00015,2]
[360869035,1747090233762,-214.09725,0.00015,2]
[360869036,1747090233772,-214.09725,0.00015,2]
[360869037,1747090233782,-14697.35131257,0.00015,2]
[360869038,1747090233791,-16000.0,0.00015,2]
[360869039,1747090233800,-500.0,0.00015,2]
[360869040,1747090233810,-500.0,0.00015,2]
[360869041,1747090233820,-250.0,0.00015,2]
[360869042,1747090233830,-400.08867886,0.00015,2]
[360869043,1747090233839,-283.00728469,0.00015,2]
[360869044,1747090233849,-500.0,0.00015,2]
[360869045,1747090233859,-1000.0,0.00015,2]
[360869046,1747090233870,-500.0,0.00015,2]
[360869047,1747090233880,-500.0,0.00015,2]
[360869048,1747090233890,-500.0,0.00015,2]
[360869049,1747090233899,-500.0,0.00015,2]
[360869050,1747090233910,-156.687773,0.00015,3]
[360869051,1747090233919,-500.0,0.00015,2]
[360869052,1747090233929,-500.0,0.00015,2]
[360869053,1747090233939,-500.0,0.00015,2]
[360869054,1747090233949,-160.0,0.00015,2]
[360869055,1747090233961,-500.0,0.00015,2]
[360869056,1747090233971,-500.0,0.00015,2]
[360869057,1747090233981,-500.0,0.00015,2]
[360869058,1747090233991,-500.0,0.00015,2]
[360869059,1747090234001,-431.46843391,0.00015,2]
[360869060,1747090234010,-500.0,0.00015,2]
[360869061,1747090234019,-500.0,0.00015,2]
[360869062,1747090234029,-500.0,0.00015,2]
[360869063,1747090234039,-500.0,0.00015,2]
[360869064,1747090234048,-500.0,0.00015,2]
[360869065,1747090234057,-500.0,0.00015,2]
[360869066,1747090234068,-500.0,0.00015,2]
[360869067,1747090234077,-500.0,0.00015,2]
[360869068,1747090234086,-500.0,0.00015,2]
[360869069,1747090234096,-171.776576,0.000151,2]
[360869070,1747090234105,-171.776576,0.000151,2]
[360869071,1747090234115,-214.09725,0.000151,2]
[360869072,1747090234124,-214.09725,0.000151,2]
[360869073,1747090234135,-2721.2,0.000151,2]
[360869074,1747090234144,-2721.2,0.000151,2]
[360869075,1747090234154,-250.0,0.000151,2]
[360869076,1747090234163,-250.0,0.000151,2]
[360869077,1747090234172,-250.0,0.000151,2]
[360869078,1747090234183,-250.0,0.000151,2]
[360869079,1747090234192,-250.0,0.000151,2]
[360869080,1747090234202,-214.09725,0.00015107,2]
[360869081,1747090234211,-214.09725,0.00015107,2]
[360869082,1747090234221,-11306.83276159,0.00015176,2]
[360869083,1747090234231,-171.776576,0.000152,2]
[360869084,1747090234241,-171.776576,0.000152,2]
[360869085,1747090234250,-151.0,0.000153,2]
[360869086,1747090234259,-151.0,0.00015314,2]
[360869087,1747090234268,-155.830763,0.00015314,2]
[360869088,1747090234278,-155.830763,0.00015314,2]
[360869089,1747090234287,-151.0,0.00015314,2]
[360869090,1747090234296,-151.0,0.00015314,2]
[360869091,1747090234306,-151.0,0.00015314,2]
[360869092,1747090234315,-151.0,0.00015383,2]
[360869093,1747090234324,-11306.83276159,0.00015555,2]
[360869094,1747090234333,-171.776576,0.00015568,2]
[360869095,1747090234343,-171.776576,0.00015568,2]
[360869096,1747090234352,-151.0,0.00015568,2]
[360869097,1747090234362,-151.0,0.00015568,2]
[360869098,1747090234371,-151.0,0.00015568,2]
[360869099,1747090234515,-151.0,0.00015568,2]
[360869100,1747090234534,-500.0,0.00015569,2]
[360869101,1747090234544,-214.09725,0.0001559,2]
[360869102,1747090234554,-214.09725,0.0001559,2]
[360869103,1747090234564,-2185.61920081,0.00015593,2]
[360869104,1747090234573,-153.0,0.00015616,2]
[360869105,1747090234583,-153.0,0.00015616,2]
[360869106,1747090234593,-306.0,0.00015616,2]
[360869107,1747090234602,-306.0,0.00015616,2]
[360869108,1747090234612,-5000.0,0.00015681,2]
[360869109,1747090234621,-5000.0,0.00015681,2]
[360869110,1747090234631,-5000.0,0.00015681,2]
[360869111,1747090234642,-151.0,0.000157,2]
[360869112,1747090234651,-1000.0,0.00015748,3]
[360869113,1747090234661,-2000.0,0.00015822,2]
[360869114,1747090234671,-151.0,0.00015831,2]
[360869115,1747090234681,-223.0315306,0.00015841,2]
[360869116,1747090234691,-186.0,0.00015842,2]
[360869117,1747090234701,-3000.0,0.00015876,2]
[360869118,1747090234710,-171.776576,0.00015876,2]
[360869119,1747090234719,-171.776576,0.00015876,2]
[360869120,1747090234729,-11306.83276159,0.00015934,2]
[360869121,1747090234739,-3000.0,0.00016,2]
[360869122,1747090234748,-214.09725,0.00016,2]
[360869123,1747090234757,-214.09725,0.00016,2]
[360869124,1747090234767,-314.24507772,0.00016,3]
[360869125,1747090234776,-997.78101552,0.00016,3]
[360869126,1747090234786,-341.603619,0.00016,30]
[360869127,1747090234795,-12623.54026388,0.00016,3]
[360869128,1747090234805,-212.17074216,0.00016,3]
[360869129,1747090234814,-160.0,0.00016,3]
[360869130,1747090234823,-160.0,0.00016,3]
[360869131,1747090234833,-151.0,0.0001601,2]
[360869132,1747090234842,-171.776576,0.0001601,2]
[360869133,1747090234851,-171.776576,0.0001601,2]
[360869134,1747090234860,-3000.0,0.0001601,2]
[360869135,1747090234870,-3000.0,0.0001602,2]
[360869136,1747090234879,-214.09725,0.0001602,2]
[360869137,1747090234889,-214.09725,0.0001602,2]
[360869138,1747090234898,-151.0,0.0001602,2]
[360869139,1747090234907,-155.830763,0.0001602,2]
[360869140,1747090234916,-155.830763,0.0001602,2]
[360869141,1747090234925,-151.0,0.0001602,2]
[360869142,1747090234936,-151.0,0.0001602,2]
[360869143,1747090234946,-151.0,0.0001602,2]
[360869144,1747090234955,-3000.0,0.0001603,2]
[360869145,1747090234965,-3000.0,0.0001604,2]
[360869146,1747090234974,-3000.0,0.0001605,2]
[360869147,1747090234984,-3000.0,0.0001606,2]
[360869148,1747090234996,-3000.0,0.0001607,2]
[360869149,1747090235006,-152.523189,0.0001607,2]
[360869150,1747090235015,-151.0,0.0001607,2]
[360869151,1747090235024,-151.0,0.0001607,2]
[360869152,1747090235034,-151.0,0.0001607,2]
[360869153,1747090235043,-171.776576,0.00016072,2]
[360869154,1747090235052,-171.776576,0.00016072,2]
[360869155,1747090235062,-151.0,0.00016072,2]
[360869156,1747090235072,-151.0,0.0001608,2]
[360869157,1747090235081,-3000.0,0.0001608,2]
[360869158,1747090235090,-214.09725,0.0001608,2]
[360869159,1747090235100,-214.09725,0.0001608,2]
[360869160,1747090235110,-3000.0,0.0001609,2]
[360869161,1747090235119,-3000.0,0.000161,2]
[360869162,1747090235128,-151.0,0.000161,2]
[360869163,1747090235139,-3000.0,0.0001611,2]
[360869164,1747090235148,-3000.0,0.0001612,2]
[360869165,1747090235158,-3000.0,0.0001613,2]
[360869166,1747090235168,-171.776576,0.0001614,2]
[360869167,1747090235178,-171.776576,0.0001614,2]
[360869168,1747090235187,-3000.0,0.0001614,2]
[360869169,1747090235196,-151.0,0.00016141,2]
[360869170,1747090235208,-214.09725,0.00016141,2]
[360869171,1747090235217,-214.09725,0.00016141,2]
[360869172,1747090235227,-5629.589722,0.0001615,2]
[360869173,1747090235238,-4239.20742803,0.00016158,2]
[360869174,1747090235249,-823.0,0.00016164,2]
[360869175,1747090235262,-160.0,0.00016189,2]
[360869176,1747090235273,-160.0,0.00016189,2]
[360869177,1747090235283,-212.17074216,0.00016193,2]
[360869178,1747090235293,-160.0,0.00016193,2]
[360869179,1747090235303,-997.78101552,0.00016193,2]
[360869180,1747090235313,-160.0,0.00016193,2]
[360869181,1747090235325,-160.0,0.00016193,2]
[360869182,1747090235335,-160.0,0.00016193,2]
[360869183,1747090235345,-160.0,0.00016193,2]
[360869184,1747090235354,-422.20096692,0.00016193,2]
[360869185,1747090235364,-12623.54026388,0.00016193,2]
[360869186,1747090235375,-160.0,0.00016193,2]
[360869187,1747090235385,-314.24507772,0.00016193,2]
[360869188,1747090235395,-160.0,0.00016193,2]
[360869189,1747090235403,-160.0,0.00016193,2]
[360869190,1747090235413,-11306.83276159,0.00016314,2]
[360869191,1747090235422,-500.0,0.00016347,2]
[360869192,1747090235432,-2185.61920081,0.00016362,2]
[360869193,1747090235441,-169.55,0.00016377,7]
[360869194,1747090235451,-330.45,0.00016377,7]
[360869195,1747090235461,-171.776576,0.00016423,2]
[360869196,1747090235471,-171.776568,0.00016423,2]
[360869197,1747090235481,-151.0,0.00016438,2]
[360869198,1747090235490,-214.09725,0.00016438,2]
[360869199,1747090235499,-214.09725,0.00016438,2]
[360869200,1747090235509,-151.0,0.00016438,2]
[360869201,1747090235518,-156.714338,0.00016438,2]
[360869202,1747090235527,-155.830763,0.00016438,2]
[360869203,1747090235536,-155.830763,0.00016438,2]
[360869204,1747090235546,-151.0,0.00016438,2]
[360869205,1747090235555,-151.0,0.00016438,2]
[360869206,1747090235564,-151.0,0.00016438,2]
[360869207,1747090235573,-151.0,0.00016438,2]
[360869208,1747090235583,-171.699761,0.00016438,2]
[360869209,1747090235592,-171.699761,0.00016438,2]
[360869210,1747090235601,-151.0,0.00016438,2]
[360869211,1747090235610,-201.84365,0.00016438,2]
[360869212,1747090235620,-201.84365,0.00016438,2]
[360869213,1747090235630,-469.8,0.00016438,2]
[360869214,1747090235639,-469.8,0.00016438,2]
[360869215,1747090235649,-970.61401,0.00016438,2]
[360869216,1747090235658,-970.61401,0.00016438,2]
[360869217,1747090235668,-151.600345,0.00016438,2]
[360869218,1747090235677,-192.475416,0.00016438,2]
[360869219,1747090235686,-192.475416,0.00016438,2]
[360869220,1747090235696,-151.0,0.00016438,2]
[360869221,1747090235705,-1018.657735,0.00016438,2]
[360869222,1747090235714,-1018.657735,0.00016438,2]
[360869223,1747090235723,-350.549244,0.00016438,2]
[360869224,1747090235732,-350.549244,0.00016438,2]
[360869225,1747090235741,-151.0,0.00016458,2]
[360869226,1747090235751,-151.0,0.00016458,2]
[360869227,1747090235760,-159.406544,0.00016458,2]
[360869228,1747090235769,-151.0,0.00016458,2]
[360869229,1747090235778,-151.0,0.00016458,2]
[360869230,1747090235787,-151.0,0.000165,2]
[360869231,1747090235796,-151.0,0.00016628,2]
[360869232,1747090235805,-3000.0,0.00016644,2]
[360869233,1747090235814,-11306.83276159,0.00016693,2]
[360869234,1747090235824,-151.0,0.000168,2]
[360869235,1747090235833,-151.0,0.000168,2]
[360869236,1747090235842,-11306.83276159,0.00017072,2]
[360869237,1747090235851,-2185.61920081,0.00017131,2]
[360869238,1747090235860,-500.0,0.00017164,2]
[360869239,1747090235870,-151.0,0.000172,2]
[360869240,1747090235879,-151.0,0.000172,2]
[360869241,1747090235889,-231.28369723,0.0001721,2]
[360869242,1747090235899,-3000.0,0.00017246,2]
[360869243,1747090235908,-546.0,0.00017256,2]
[360869244,1747090235917,-706.0,0.00017256,2]
[360869245,1747090235926,-2237.0,0.00017256,2]
[360869246,1747090235936,-160.0,0.00017268,2]
[360869247,1747090235946,-179.92802879,0.00017423,2]
[360869248,1747090235955,-11306.83276159,0.00017452,2]
[360869249,1747090235964,-4000.0,0.00017466,2]
[360869250,1747090235973,-4239.20742803,0.00017505,2]
[360869251,1747090235982,-151.0,0.000176,2]
[360869252,1747090235992,-151.0,0.000176,2]
[360869253,1747090236001,-1152.0,0.00017741,2]
[360869254,1747090236011,-151.0,0.00017808,2]
[360869255,1747090236020,-151.0,0.0001781,2]
[360869256,1747090236030,-11306.83276159,0.00017831,2]
[360869257,1747090236039,-314.24507772,0.000179,7]
[360869258,1747090236048,-997.78101552,0.000179,7]
[360869259,1747090236058,-12623.54026388,0.000179,7]
[360869260,1747090236067,-212.17074216,0.000179,7]
[360869261,1747090236078,-160.0,0.000179,7]
[360869262,1747090236088,-2185.61920081,0.000179,2]
[360869263,1747090236097,-9030.81513265,0.00018,2]
[360869264,1747090236106,-15585.95292488,0.00018,2]
[360869265,1747090236121,-7054.1758566,0.00018,2]
[360869266,1747090236130,-676.18594184,0.00018,2]
[360869267,1747090236140,-1000.0,0.00018,2]
[360869268,1747090236149,-155.830763,0.00018,2]
[360869269,1747090236158,-155.830763,0.00018,2]
[360869270,1747090236167,-151.0,0.00018,2]
[360869271,1747090236177,-205.666842,0.00018,2]
[360869272,1747090236186,-151.0,0.00018,2]
[360869273,1747090236195,-81912.49470915,0.00018,2]
[360869335,1747090238012,-500.0,0.00012227,2]
[360869337,1747090238021,-500.0,0.00012227,2]
[360869339,1747090238031,-210.75565549,0.00012227,2]
[360869341,1747090238041,-161.6716353,0.00012227,2]
[360869343,1747090238050,-412.56516415,0.00013699,2]
[360869345,1747090238060,-151.0,0.000152,2]
[360869347,1747090238072,-151.0,0.000156,2]
[360869349,1747090238082,-151.0,0.00016,2]
[360869351,1747090238092,-139.02147704,0.000164,2]
[360869366,1747090238226,-11.97852296,0.000164,2]
[360869368,1747090238235,-202.98983443,0.00016438,2]
[360869370,1747090238244,-151.0,0.000168,2]
[360869372,1747090238254,-151.0,0.000172,2]
[360869374,1747090238263,-151.0,0.000176,2]
[360869376,1747090238272,-567.42341196,0.00018,2]
[360869379,1747090238284,-285.99950906,0.00018,2]
[360869381,1747090238295,-3972.41080006,0.00018,2]
[360869383,1747090238305,-1579.58073162,0.00018,2]
[360869386,1747090238317,-2218.523465,0.00018,2]
[360869388,1747090238332,-6509.57110482,0.00018,2]
[360869473,1747090240338,-34392.71643379,0.00018,2]
[360869485,1747090243106,-59523.78433636,0.00018,2]
[360869486,1747090243117,-8387.9682411,0.00018,2]
[360869487,1747090243127,-151.0,0.00018,2]
[360869488,1747090243136,-970.61401,0.00018,2]
[360869489,1747090243145,-970.61401,0.00018,2]
[360869490,1747090243301,-151.0,0.00018,2]
[360869491,1747090243311,-220.148688,0.00018,2]
[360869492,1747090243322,-220.148688,0.00018,2]
[360869493,1747090243331,-151.0,0.00018,2]
[360869494,1747090243340,-151.0,0.00018,2]
[360869495,1747090243350,-365.08,0.00018,2]
[360869496,1747090243362,-365.08,0.00018,2]
[360869497,1747090243372,-365.08,0.00018,2]
[360869498,1747090243381,-250.0,0.00018,30]
[360869499,1747090243390,-151.0,0.00018,2]
[360869500,1747090243400,-500.0,0.00018022,2]
[360869501,1747090243409,-151.0,0.00018038,2]
[360869502,1747090243419,-151.0,0.00018038,2]
[360869503,1747090243428,-151.0,0.000182,2]
[360869504,1747090243438,-154.689294,0.0001821,2]
[360869505,1747090243447,-154.689294,0.0001821,2]
[360869506,1747090243456,-151.0,0.0001821,2]
[360869507,1747090243465,-151.0,0.0001821,2]
[360869508,1747090243474,-4315.40394557,0.0001821,2]
[360869509,1747090243486,-262.248948,0.0001821,2]
[360869510,1747090243498,-6729.17986802,0.0001821,2]
[360869511,1747090243507,-151.0,0.00018245,2]
[360869512,1747090243517,-292.025912,0.00018245,2]
[360869513,1747090243526,-292.025912,0.00018245,2]
[360869514,1747090243536,-151.183506,0.00018245,2]
[360869515,1747090243545,-151.183506,0.00018245,2]
[360869516,1747090243555,-335.048695,0.00018245,2]
[360869517,1747090243565,-3083.18616421,0.00018288,2]
[360869518,1747090243576,-1916.81383579,0.00018288,2]
[360869519,1747090243586,-3000.0,0.00018342,2]
[360869520,1747090243596,-151.0,0.000184,2]
[360869521,1747090243606,-151.0,0.000184,2]
[360869522,1747090243616,-148581.3744985,0.000184,7]
[360869523,1747090243631,-1153.32357775,0.000184,7]
[360869524,1747090243669,-476.6984631,0.000184,7]
[360869594,1747090245981,-15505.6765799,0.000184,7]
[360869597,1747090246001,-7440.36245798,0.000184,7]
[360869601,1747090246031,-4946.81751285,0.000184,7]
[360869604,1747090246050,-74944.80690992,0.000184,7]
[360869607,1747090246065,-151.0,0.000184,2]
[360869609,1747090246080,-880.91793478,0.00018461,2]
[360869612,1747090246094,-1614.999287,0.000185,2]
[360869615,1747090246108,-151.0,0.00018555,2]
[360869617,1747090246123,-239.84119403,0.00018579,2]
[360869620,1747090246137,-11306.83276159,0.0001859,2]
[360869622,1747090246151,-952.18495324,0.00018631,2]
[360869625,1747090246166,-165.28605497,0.000187,2]
[360869628,1747090246180,-2830.89997647,0.000187,2]
[360869630,1747090246194,-350.549244,0.00018773,2]
[360869633,1747090246208,-350.549244,0.00018773,2]
[360869635,1747090246222,-428.06906109,0.00018799,2]
[360869637,1747090246236,-160.0,0.00018799,2]
[360869640,1747090246251,-160.0,0.00018799,2]
[360869642,1747090246265,-10704.46456099,0.000188,2]
[360869665,1747090246462,-7471.49509641,0.000188,2]
[360869668,1747090246488,-4400.23448894,0.000188,2]
[360872158,1747090342327,-230.23822979,0.00012001,2]
[360872159,1747090348062,-269.76177021,0.00012001,2]
[360872160,1747090362423,-423.78892841,0.00012001,2]
[360872161,1747090377422,-213.89203109,0.00012001,2]
[360872162,1747090392990,-243.10366515,0.00012001,2]
[360872163,1747090407424,-360.10036042,0.00012001,2]
[360872164,1747090422568,-182.90394334,0.00012001,2]
[360872165,1747090437395,-267.9280847,0.00012001,2]
[360872166,1747090528285,-291.58456909,0.00011881,2]
[360872167,1747090544218,-274.6360475,0.00011881,2]
[360872168,1747090558019,-293.18829893,0.00011881,2]
[360872169,1747090572864,-233.35483806,0.00011881,2]
[360872170,1747090589885,-398.82081551,0.00011881,2]
[360872171,1747090602414,-174.07163383,0.00011881,2]
[360872172,1747090617493,-189.46946149,0.00011881,2]
[360872173,1747090632417,-190.36410232,0.00011881,2]
[360872174,1747090648107,-309.63589768,0.00011881,2]
[360872175,1747090663202,-216.34533946,0.00011881,2]
[360872176,1747090677466,-236.81198302,0.00011881,2]
[360872177,1747090677489,-21.55946836,0.00011881,2]
[360872179,1747091196338,-172.22137684,0.00011881,2]
[360872180,1747091203064,-77.77862316,0.00011881,2]
[360872181,1747091241132,-402.43021619,0.00012001,2]
[360872185,1747091345100,-11588.56978381,0.00012001,2]
[360872186,1747091345133,-200.30416869,0.00012122,2]
[360872187,1747091345166,-246.54711895,0.00012122,2]
[360872188,1747091345198,-181.0,0.00012305,2]
[360872189,1747091345229,-164.476756,0.000124,2]
[360872190,1747091345262,-1200.0,0.00013303,2]
[360872191,1747091345295,-300.0,0.00013303,2]
[360872192,1747091345328,-300.0,0.00013304,2]
[360872193,1747091345359,-300.0,0.00013304,2]
[360872194,1747091345391,-300.0,0.00013304,2]
[360872195,1747091345424,-500.0,0.00013304,2]
[360872196,1747091345456,-189.46946149,0.00013304,2]
[360872197,1747091345491,-500.0,0.00013304,2]
[360872198,1747091345525,-500.0,0.00013304,2]
[360872199,1747091345559,-500.0,0.00013304,2]
[360872200,1747091345593,-500.0,0.00013304,2]
[360872201,1747091345802,-395.09689358,0.00013304,2]
[360872202,1747091345823,-500.0,0.00013304,2]
[360872203,1747091345845,-500.0,0.00013304,2]
[360872204,1747091345868,-500.0,0.00013304,2]
[360872205,1747091345890,-381.46165663,0.00013304,2]
[360872206,1747091345913,-312.80268297,0.00013304,2]
[360872207,1747091345934,-500.0,0.00013305,2]
[360872208,1747091345954,-500.0,0.00013305,2]
[360872209,1747091345975,-214.26487911,0.00013305,2]
[360872210,1747091345997,-500.0,0.00013305,2]
[360872211,1747091346017,-500.0,0.00013305,2]
[360872212,1747091346038,-609.30093752,0.00013305,2]
[360872213,1747091346059,-500.0,0.00013305,2]
[360872214,1747091346079,-300.0,0.00013305,2]
[360872215,1747091346101,-19019.56167483,0.00013305,2]
[360872218,1747091364078,-253.22398939,0.00013306,2]
[360872219,1747091365543,-2116.50911677,0.00013306,2]
[360872252,1747091431944,-200.30416869,0.00011781,2]
[360872254,1747091431954,-250.0,0.00012409,2]
[360872256,1747091431964,-24900.0,0.00012612,2]
[360872258,1747091431975,-2404.8942993,0.00013264,2]
[360872260,1747091431985,-257.0,0.00013305,2]
[360872262,1747091431994,-1394.10229272,0.00013306,2]
[360872264,1747091432006,-1240.66685218,0.00013306,2]
[360872321,1747091437935,-209.05129518,0.00012611,2]
[360872323,1747091437944,-255.02982948,0.00012611,2]
[360872325,1747091437956,-11.09204758,0.00012611,2]
[360872327,1747091437966,-4810.34475334,0.00013306,2]
[360872329,1747091437976,-598.52938163,0.00013448,2]
[360872330,1747091437985,-1668.4053141,0.00013496,2]
[360872331,1747091437995,-300.0,0.0001351,2]
[360872332,1747091438005,-3592.0918802,0.00013511,2]
[360872333,1747091438014,-366.740814,0.00013699,2]
[360872335,1747091438024,-1007.450493,0.00013699,2]
[360872337,1747091438033,-152.0,0.00014309,2]
[360872338,1747091438042,-458.29710832,0.00014535,2]
[360872341,1747091438058,-41.70289168,0.00014535,2]
[360872343,1747091438068,-500.0,0.00014535,2]
[360872345,1747091438078,-500.0,0.00014535,2]
[360872347,1747091438087,-499.98541538,0.00014535,2]
[360872349,1747091438097,-500.0,0.00014535,2]
[360872351,1747091438106,-505.67167407,0.00014535,2]
[360872353,1747091438116,-476.51065627,0.00014535,2]
[360872355,1747091438125,-4548.95246951,0.00014536,2]
[360872357,1747091438135,-9279.23285941,0.00014536,2]
[360872359,1747091438145,-228.431,0.00014636,2]
[360872362,1747091438155,-546.0,0.00014636,2]
[360872364,1747091438163,-706.0,0.00014636,2]
[360872366,1747091438173,-2104.83553227,0.00014636,2]
[360872371,1747091438218,-132.16446773,0.00014636,2]
[360872373,1747091438227,-404.0,0.00014636,2]
[360872375,1747091438236,-207.4,0.0001474,2]
[360872378,1747091438246,-271.6,0.000148,2]
[360872380,1747091438255,-272.2,0.000148,2]
[360872382,1747091438265,-420.0,0.00014809,2]
[360872384,1747091438275,-153.66113,0.00014897,5]
[360872386,1747091438284,-153.66113,0.00014897,5]
[360872388,1747091438294,-160.086,0.00014898,2]
[360872390,1747091438304,-500.0,0.00014898,2]
[360872392,1747091438313,-500.0,0.00014898,2]
[360872394,1747091438323,-1576.19768873,0.000149,2]
[360872412,1747091440643,-53.79658283,0.000149,2]
[360872426,1747091443050,-57.40572844,0.000149,2]
[360872427,1747091443060,-5276.52195566,0.000149,2]
[360872428,1747091443069,-160.0,0.00015,2]
[360872429,1747091443079,-214.52940602,0.00015057,2]
[360872430,1747091443088,-3122.8666918,0.00015133,2]
[360872431,1747091443097,-5276.5219554,0.0001521,2]